fUSD/lending_fUSD_20260202
["ID","MTS","AMOUNT","RATE_DAILY","PERIOD"]
[404323676,1770059441888,-1580.85073603,0.00016438,2]
[404323677,1770059441897,-1580.85073603,0.00016438,2]
[404323678,1770059441906,-1580.85073603,0.00016438,2]
[404323679,1770059441916,-1580.85073603,0.00016438,2]
[404323680,1770059441926,-1580.85073603,0.00016438,2]
[404323681,1770059441936,-1580.85073603,0.00016438,2]
[404323682,1770059441947,-1580.85073596,0.00016438,2]
[404323683,1770059441958,-900.0,0.00016438,2]
[404323684,1770059441967,-6090.79,0.00016438,2]
[404323685,1770059441976,-718.43917855,0.00016438,2]
[404323686,1770059441986,-150.0,0.00016473,2]
[404323687,1770059441995,-12486.61335912,0.00016477,2]
[404323688,1770059442005,-13007.33191115,0.00016565,2]
[404323689,1770059442015,-503.30357537,0.00016568,2]
[404323690,1770059442025,-1500.0,0.00016568,2]
[404323691,1770059442035,-1500.0,0.00016568,2]
[404323692,1770059442045,-359.76179104,0.00016632,2]
[404323693,1770059442054,-166.66,0.00016675,2]
[404323694,1770059442064,-516.45192786,0.00016712,2]
[404323695,1770059442073,-386.03228443,0.00016805,2]
[404323696,1770059442083,-1018.74530623,0.00016805,2]
[404323697,1770059442092,-1797.18747592,0.00016805,2]
[404323698,1770059442101,-500.0,0.00016839,2]
[404323699,1770059442110,-500.0,0.00016839,2]
[404323700,1770059442119,-233.51889341,0.00016909,2]
[404323701,1770059442128,-200.0,0.00017,5]
[404323702,1770059442137,-300.0,0.00017,2]
[404323703,1770059442146,-166.66,0.00017005,2]
[404323704,1770059442155,-300.0,0.00017021,2]
[404323705,1770059442165,-1500.0,0.000171,2]
[404323706,1770059442174,-2000.0,0.00017116,2]
[404323707,1770059442183,-12486.61335912,0.00017175,2]
[404323708,1770059442192,-13007.33191115,0.00017219,2]
[404323709,1770059442202,-159.60859955,0.00017256,2]
[404323710,1770059442212,-1000.0,0.0001726,2]
[404323711,1770059442221,-2688.48498125,0.00017305,2]
[404323712,1770059442230,-1334.0,0.00017311,2]
[404323713,1770059442239,-3514.155,0.00017311,2]
[404323714,1770059442248,-1273.693,0.00017311,2]
[404323715,1770059442257,-251.0,0.00017311,2]
[404323716,1770059442267,-917.0,0.00017311,2]
[404323717,1770059442276,-1205.0,0.00017311,2]
[404323718,1770059442285,-3253.0,0.00017311,2]
[404323719,1770059442295,-1316.0,0.00017311,2]
[404323720,1770059442304,-2465.108,0.00017311,2]
[404323721,1770059442313,-6579.0,0.00017311,2]
[404323722,1770059442322,-166.66,0.00017335,2]
[404323723,1770059442333,-2844.0,0.000174,2]
[404323724,1770059442342,-242.15909246,0.00017457,2]
[404323725,1770059442352,-1000.0,0.00017534,2]
[404323726,1770059442361,-501.39718201,0.00017568,2]
[404323727,1770059442371,-1112.28742456,0.0001764,2]
[404323728,1770059442380,-1967.38963433,0.0001764,2]
[404323729,1770059442389,-1062.68609997,0.0001764,2]
[404323730,1770059442399,-1503.0,0.00017653,2]
[404323731,1770059442409,-1503.0,0.00017653,2]
[404323732,1770059442419,-1503.0,0.00017653,2]
[404323733,1770059442428,-1503.0,0.00017653,2]
[404323734,1770059442437,-151.0,0.00017653,2]
[404323735,1770059442448,-1503.0,0.00017653,2]
[404323736,1770059442457,-151.0,0.00017653,2]
[404323737,1770059442466,-1503.0,0.00017653,2]
[404323738,1770059442476,-151.0,0.00017653,2]
[404323739,1770059442486,-1503.0,0.00017653,2]
[404323740,1770059442495,-151.0,0.00017653,2]
[404323741,1770059442504,-1503.0,0.00017653,2]
[404323742,1770059442514,-151.0,0.00017653,2]
[404323743,1770059442523,-1503.0,0.00017653,2]
[404323744,1770059442532,-151.0,0.00017653,2]
[404323745,1770059442542,-1503.0,0.00017653,2]
[404323746,1770059442551,-151.0,0.00017653,2]
[404323747,1770059442561,-1503.0,0.00017653,2]
[404323748,1770059442570,-151.0,0.00017653,2]
[404323749,1770059442580,-1503.0,0.00017653,2]
[404323750,1770059442589,-151.0,0.00017653,2]
[404323751,1770059442598,-1503.0,0.00017653,2]
[404323752,1770059442608,-151.0,0.00017653,2]
[404323753,1770059442617,-1503.0,0.00017653,2]
[404323754,1770059442627,-1503.0,0.00017653,2]
[404323755,1770059442636,-1503.0,0.00017653,2]
[404323756,1770059442647,-151.0,0.00017653,2]
[404323757,1770059442656,-1503.0,0.00017653,2]
[404323758,1770059442667,-151.0,0.00017653,2]
[404323759,1770059442677,-1503.0,0.00017653,2]
[404323760,1770059442686,-151.0,0.00017653,2]
[404323761,1770059442695,-1503.0,0.00017653,2]
[404323762,1770059442705,-151.0,0.00017653,2]
[404323763,1770059442714,-1503.0,0.00017653,2]
[404323764,1770059442723,-151.0,0.00017653,2]
[404323765,1770059442734,-1503.0,0.00017653,2]
[404323766,1770059442743,-151.0,0.00017653,2]
[404323767,1770059442753,-1503.0,0.00017653,2]
[404323768,1770059442762,-151.0,0.00017653,2]
[404323769,1770059442772,-151.0,0.00017653,2]
[404323770,1770059442784,-151.0,0.00017653,2]
[404323771,1770059442794,-151.0,0.00017653,2]
[404323772,1770059442809,-151.0,0.00017653,2]
[404323773,1770059442819,-151.0,0.00017653,2]
[404323774,1770059442829,-151.0,0.00017653,2]
[404323775,1770059442839,-2500.0,0.00017664,2]
[404323776,1770059442850,-150.0,0.00017699,2]
[404323777,1770059442860,-150.0,0.00017699,2]
[404323778,1770059442871,-150.0,0.00017699,2]
[404323779,1770059442881,-150.0,0.00017699,2]
[404323781,1770059442891,-500.0,0.00017699,2]
[404323783,1770059442900,-150.0,0.00017699,2]
[404323785,1770059442910,-150.0,0.00017699,2]
[404323787,1770059442920,-150.0,0.00017699,2]
[404323788,1770059442929,-150.0,0.00017699,2]
[404323790,1770059442938,-165.62377034,0.00017746,2]
[404323792,1770059442948,-150.0,0.00017754,2]
[404323793,1770059442958,-150.0,0.00017754,2]
[404323794,1770059442967,-150.0,0.00017754,2]
[404323795,1770059442977,-500.0,0.00017754,2]
[404323796,1770059442988,-150.0,0.00017754,2]
[404323797,1770059442998,-150.0,0.00017754,2]
[404323798,1770059443007,-150.0,0.00017754,2]
[404323799,1770059443017,-6218.3,0.00017771,2]
[404323800,1770059443027,-2700.0,0.000178,6]
[404323801,1770059443036,-3637.6065,0.00017805,2]
[404323802,1770059443046,-150.0,0.00017808,2]
[404323803,1770059443055,-1000.0,0.00017808,2]
[404323804,1770059443064,-150.0,0.00017809,2]
[404323805,1770059443074,-200.0,0.00017809,2]
[404323806,1770059443083,-200.0,0.00017809,2]
[404323807,1770059443093,-500.0,0.00017809,2]
[404323808,1770059443102,-200.0,0.00017809,2]
[404323809,1770059443111,-200.0,0.00017809,2]
[404323810,1770059443121,-259.91417246,0.00017809,2]
[404323811,1770059443131,-2000.0,0.0001782,2]
[404323812,1770059443140,-2000.0,0.0001782,2]
[404323813,1770059443150,-4407.0,0.00017824,2]
[404323814,1770059443159,-1613.0,0.00017845,2]
[404323815,1770059443172,-200.0,0.00017856,2]
[404323816,1770059443181,-150.0,0.00017863,2]
[404323817,1770059443191,-150.0,0.00017863,2]
[404323818,1770059443200,-500.0,0.00017863,2]
[404323819,1770059443210,-25000.0,0.00017867,3]
[404323820,1770059443219,-13007.33191115,0.00017873,2]
[404323821,1770059443229,-12486.61335912,0.00017873,2]
[404323822,1770059443239,-25000.0,0.00017876,3]
[404323823,1770059443248,-25000.0,0.00017885,3]
[404323824,1770059443258,-25000.0,0.00017893,3]
[404323825,1770059443269,-10139.4576,0.000179,2]
[404323826,1770059443279,-500.0,0.000179,2]
[404323827,1770059443289,-1000.0,0.000179,2]
[404323828,1770059443298,-2700.0,0.000179,6]
[404323829,1770059443308,-4407.0,0.000179,2]
[404323830,1770059443318,-25000.0,0.00017902,3]
[404323831,1770059443328,-25000.0,0.00017911,3]
[404323832,1770059443338,-6453.0,0.00017912,2]
[404323833,1770059443348,-200.0,0.00017918,2]
[404323834,1770059443358,-500.0,0.00017918,2]
[404323835,1770059443368,-206.0,0.00017918,2]
[404323836,1770059443378,-500.0,0.00017918,2]
[404323837,1770059443387,-25000.0,0.0001792,3]
[404323838,1770059443397,-25000.0,0.00017929,3]
[404323839,1770059443406,-25000.0,0.00017937,3]
[404323840,1770059443418,-25000.0,0.00017946,3]
[404323841,1770059443428,-25000.0,0.00017955,3]
[404323842,1770059443437,-25000.0,0.00017964,3]
[404323843,1770059443447,-25000.0,0.00017973,3]
[404323844,1770059443456,-500.0,0.00017973,2]
[404323845,1770059443466,-25000.0,0.00017981,3]
[404323846,1770059443475,-500.0,0.00017982,2]
[404323847,1770059443485,-263.46649514,0.0001799,2]
[404323848,1770059443494,-25000.0,0.0001799,3]
[404323849,1770059443503,-151.0,0.00017997,2]
[404323850,1770059443512,-155.0,0.00017999,2]
[404323851,1770059443522,-25000.0,0.00017999,3]
[404323852,1770059443531,-300.0,0.00017999,2]
[404323853,1770059443540,-666.0,0.00017999,2]
[404323854,1770059443550,-300.0,0.00017999,2]
[404323855,1770059443558,-666.0,0.00017999,2]
[404323856,1770059443568,-300.0,0.00017999,2]
[404323857,1770059443577,-666.0,0.00017999,2]
[404323858,1770059443586,-150.0,0.00017999,2]
[404323859,1770059443595,-300.0,0.00017999,2]
[404323860,1770059443605,-300.0,0.00017999,2]
[404323861,1770059443614,-300.0,0.00017999,2]
[404323862,1770059443622,-666.0,0.00017999,2]
[404323863,1770059443631,-20453.46079029,0.00017999,3]
[404323864,1770059443641,-300.0,0.00017999,2]
[404323866,1770059443650,-3496615.28954303,0.00018,2]
[404323870,1770059443679,-393.69145427,0.00018,2]
[404323872,1770059443690,-774.71,0.00018,2]
[404323876,1770059443912,-507.96,0.00011607,2]
[404323877,1770059443922,-333.46921356,0.00012511,2]
[404323878,1770059443931,-333.46921356,0.00013399,2]
[404323879,1770059443940,-653.97306588,0.00015605,2]
[404323880,1770059444124,-6582.34766677,0.00015605,2]
[404323881,1770059444368,-564.31810134,0.00015605,2]
[404323882,1770059444379,-2345.44615572,0.00015605,2]
[404323883,1770059444391,-1000.0001,0.00015605,2]
[404323884,1770059444402,-1328.50838769,0.00015605,2]
[404323885,1770059444425,-1629.4065226,0.00015605,2]
[404323886,1770059444435,-295.5934774,0.00018,2]
[404323887,1770059444446,-360.0032676,0.00018,2]
[404323888,1770059444460,-47587.83130592,0.00018,2]
[404323889,1770059444471,-6464.47926304,0.00018,2]
[404323890,1770059444481,-3173.59832774,0.00018,2]
[404323891,1770059444492,-1740.0911033,0.00018,2]
[404323892,1770059444503,-1143.00500063,0.00018,2]
[404323893,1770059444514,-426136.94377406,0.00018,2]
[404323894,1770059444525,-379052.186083,0.00018,2]
[404323895,1770059444749,-1134.979828,0.00018,2]
[404323896,1770059444806,-1082.41497312,0.00018,2]
[404323897,1770059444817,-1760.12755376,0.00018,2]
[404323898,1770059444827,-9327.00777608,0.00018,2]
[404323899,1770059444843,-278.23631671,0.00018,2]
[404323900,1770059444854,-1564.80579898,0.00018,2]
[404323901,1770059444865,-774.13,0.00018,2]
[404323902,1770059444930,-348.0,0.0001216,2]
[404323903,1770059444939,-333.46921356,0.00014321,2]
[404323904,1770059444949,-79.53078644,0.00018,2]
[404323905,1770059444960,-1155.5,0.00018,2]
[404323912,1770059446193,-1500.86495919,0.00011555,2]
[404323913,1770059446205,-778.18,0.00011555,2]
[404323914,1770059446261,-1322.500002,0.00011555,2]
[404323915,1770059446279,-2400.4530701,0.00011555,2]
[404323916,1770059446306,-1753.3961377,0.00011555,2]
[404323917,1770059446316,-333.46921356,0.00013468,2]
[404323918,1770059446327,-151.0,0.00016062,2]
[404323919,1770059446339,-151.0,0.00016062,2]
[404323920,1770059446348,-17327.58987662,0.00018,2]
[404323921,1770059446361,-20300.8448,0.00018,2]
[404323922,1770059446377,-63854.46432756,0.00018,2]
[404323923,1770059446392,-2688.3650336,0.00018,2]
[404323924,1770059446407,-19615.472205,0.00018,2]
[404323925,1770059446421,-3696.7,0.00018,2]
[404323926,1770059446434,-9888.75,0.00018,2]
[404323927,1770059446463,-6756.48853091,0.00018,2]
[404323929,1770059483266,-1000.0,0.00011337,2]
[404323932,1770059539130,5000.01,0.00011238,2]
[404323933,1770059539153,5000.01,0.00011238,2]
[404323934,1770059539175,5000.01,0.00011238,2]
[404323935,1770059539197,5000.01,0.00011238,2]
[404323936,1770059539218,5000.01,0.00011238,2]
[404323937,1770059539239,5000.01,0.00011238,2]
[404323938,1770059539260,2995.7426,0.00011238,2]
[404323939,1770059581295,267.6807,0.00011238,2]
[404323940,1770059602166,4732.3293,0.00011238,2]
[404323941,1770059602190,5000.01,0.00011238,2]
[404323942,1770059602214,5000.01,0.00011238,2]
[404323943,1770059738666,700.0,0.000106,3]
[404323944,1770059740748,1500.0,0.000107,3]
[404323945,1770059742844,2200.0,0.000108,3]
[404323946,1770059744948,3000.0,0.000109,3]
[404323948,1770059962970,282.65,8.548e-05,2]
[404323949,1770059963230,282.65,9.403e-05,2]
[404323950,1770059963482,282.65,0.00010258,2]
[404323951,1770060004022,241.0,0.00011112,2]
[404323952,1770060011025,-282.65,0.00011112,2]
[404323953,1770060044584,500.0,0.00010664,2]
[404323954,1770060091017,-9759.01,0.00011065,2]
[404323955,1770060091208,-10000.01,0.00011065,2]
[404323956,1770060091305,-10000.01,0.00011065,2]
[404323957,1770060091424,-10000.01,0.00011065,2]
[404323958,1770060091533,-10000.01,0.00011065,2]
[404323959,1770060091658,-10000.01,0.00011065,2]
[404323960,1770060091772,-10000.01,0.00011065,2]
[404323961,1770060091932,-10000.01,0.00011065,2]
[404323962,1770060092042,-10000.01,0.00011065,2]
[404323963,1770060099326,-2136.40053127,0.00011037,2]
[404323964,1770060099964,-727.20893746,0.00011037,2]
[404323965,1770060100001,-8545.59212508,0.00011065,2]
[404323966,1770060103047,-2863.60946873,0.00011037,2]
[404323967,1770060103081,-4272.79106254,0.00011065,2]
[404323968,1770060103210,-10000.01,0.00011065,2]
[404323969,1770060103414,-10000.01,0.00011065,2]
[404323970,1770060103555,-10000.01,0.00011065,2]
[404323971,1770060103687,-10000.01,0.00011065,2]
[404323972,1770060103820,-10000.01,0.00011065,2]
[404323973,1770060103933,-10000.01,0.00011065,2]
[404323974,1770060104120,-10000.01,0.00011065,2]
[404323975,1770060123474,-2846.7543082,0.00011065,2]
[404323976,1770060129500,-5000.01,0.00011065,2]
[404323977,1770060151495,-1982.67332809,0.00010982,2]
[404323978,1770060183888,-5000.01,0.00010982,2]
[404323979,1770060189831,-2049.87497288,0.00010982,2]
[404323980,1770060191628,900.26005424,0.00010982,2]
[404323981,1770060196238,-182.47,0.00010959,2]
[404323982,1770060196274,-3734.80994576,0.00010959,2]
[404323983,1770060196450,-900.26005424,0.00010959,2]
[404323984,1770060196493,-3199.48989152,0.00010982,2]
[404323985,1770060196555,-1070.51283358,0.00010982,2]
[404323986,1770060257306,-2147.70710153,0.00010975,2]
[404323988,1770060262777,2147.70710153,0.00010975,2]
[404323989,1770060279945,1321.78221872,0.00010975,2]
[404323990,1770060301535,-234.91129419,0.00010975,2]
[404323991,1770060311840,3446.84185288,0.00010975,2]
[404323992,1770060325162,1029.34213251,0.000108,2]
[404323993,1770060374939,1349.50671512,0.000209,30]
[404323994,1770060411256,-1610.78032613,0.00010975,2]
[404323995,1770060411284,-881.18814582,0.00010975,2]
[404323996,1770060411462,-1610.78032613,0.00010975,2]
[404323997,1770060415181,416.24077908,0.00010975,2]
[404323998,1770060430073,10000.01,0.00010965,2]
[404323999,1770060430095,10000.01,0.00010965,2]
[404324000,1770060430124,10000.01,0.00010965,2]
[404324001,1770060430148,10000.01,0.00010965,2]
[404324002,1770060430172,10000.01,0.00010965,2]
[404324003,1770060430205,10000.01,0.00010965,2]
[404324004,1770060430238,9580.4144,0.00010965,2]
[404324005,1770060432007,419.5956,0.00010975,2]
[404324006,1770060432030,1878.2989686,0.00010975,2]
[404324007,1770060436248,2500.0,0.00010965,2]
[404324008,1770060438219,170.84504992,0.00010975,2]
[404324009,1770060441187,900.0,0.000106,3]
[404324010,1770060443257,1800.0,0.000107,3]
[404324011,1770060445375,2700.0,0.000108,3]
[404324012,1770060447523,3600.0,0.000109,3]
[404324013,1770060449619,4500.0,0.000119,4]
[404324016,1770060507424,268.67078659,0.000107,2]
[404324017,1770060511409,1626.29601682,0.0002041,30]
[404324018,1770060544462,-587.45876388,0.00010975,2]
[404324019,1770060552165,1531.9297124,0.00010975,2]
[404324020,1770060558893,1000.0,0.00010168,2]
[404324021,1770060564480,3851.5479,0.00010965,2]
[404324022,1770060565988,1208.08524465,0.00010975,2]
[404324023,1770060576420,1208.08524465,0.00010975,2]
[404324024,1770060579804,8791.92475535,0.00010965,2]
[404324025,1770060579826,10000.01,0.00010965,2]
[404324026,1770060579847,10000.01,0.00010965,2]
[404324027,1770060579869,10000.01,0.00010965,2]
[404324028,1770060579890,8074.06444465,0.00010965,2]
[404324029,1770060581960,2500.0,0.00010965,2]
[404324030,1770060585843,150.0,0.00011233,120]
[404324035,1770060632193,-240.0,0.00011023,2]
[404324037,1770060632202,-33.63724884,0.00011023,2]
[404324038,1770060632248,-161.36275116,0.00011023,2]
[404324039,1770060632260,-250.0,0.00011024,2]
[404324040,1770060632270,-300.0,0.00011024,2]
[404324041,1770060632279,-78.16224884,0.00011026,2]
[404324042,1770060632309,-116.83775116,0.00011026,2]
[404324043,1770060632318,-250.0,0.0001103,2]
[404324044,1770060632327,-211.0223289,0.0001103,2]
[404324045,1770060632414,-88.9776711,0.0001103,2]
[404324046,1770060632424,-202.4923289,0.0001103,2]
[404324047,1770060632435,-97.5076711,0.0001103,2]
[404324048,1770060632444,-195.0,0.00011035,2]
[404324049,1770060632454,-41.5171789,0.00011037,2]
[404324050,1770060632465,-458.4828211,0.00011037,2]
[404324051,1770060632475,-52.9271789,0.00011038,2]
[404324052,1770060632485,-447.0728211,0.00011038,2]
[404324053,1770060632495,-150.0,0.00011038,2]
[404324054,1770060632504,-1200.0,0.00011049,2]
[404324055,1770060632513,-614.7551553,0.00011055,2]
[404324056,1770060632523,-300.0,0.00011058,2]
[404324057,1770060632532,-150.0,0.00011058,2]
[404324058,1770060632541,-500.0,0.00011059,2]
[404324059,1770060632550,-151.0,0.00011059,2]
[404324060,1770060632560,-500.0,0.00011059,2]
[404324061,1770060632569,-500.0,0.00011059,2]
[404324062,1770060632578,-151.0,0.00011059,2]
[404324063,1770060632587,-500.0,0.00011059,2]
[404324064,1770060632596,-500.0,0.00011059,2]
[404324065,1770060632605,-151.0,0.00011059,2]
[404324066,1770060632615,-155.3135933,0.00011059,2]
[404324067,1770060632627,-344.6864067,0.00011059,2]
[404324068,1770060632636,-500.0,0.00011059,2]
[404324069,1770060632645,-151.0,0.00011059,2]
[404324070,1770060632655,-4.3135933,0.00011059,2]
[404324071,1770060632666,-495.6864067,0.00011059,2]
[404324072,1770060632676,-500.0,0.00011059,2]
[404324073,1770060632685,-151.0,0.00011059,2]
[404324074,1770060632694,-500.0,0.00011059,2]
[404324075,1770060632703,-151.0,0.00011059,2]
[404324076,1770060632713,-500.0,0.00011059,2]
[404324077,1770060632722,-151.0,0.00011059,2]
[404324078,1770060632731,-500.0,0.00011059,2]
[404324079,1770060632740,-500.0,0.00011059,2]
[404324080,1770060632750,-151.0,0.00011059,2]
[404324081,1770060632759,-500.0,0.00011059,2]
[404324082,1770060632768,-500.0,0.00011059,2]
[404324083,1770060632777,-151.0,0.00011059,2]
[404324084,1770060632786,-500.0,0.00011059,2]
[404324085,1770060632795,-500.0,0.00011059,2]
[404324086,1770060632804,-151.0,0.00011059,2]
[404324087,1770060632813,-500.0,0.00011059,2]
[404324088,1770060632822,-500.0,0.00011059,2]
[404324089,1770060632831,-151.0,0.00011059,2]
[404324090,1770060632840,-500.0,0.00011059,2]
[404324091,1770060632850,-500.0,0.00011059,2]
[404324092,1770060632859,-500.0,0.00011059,2]
[404324093,1770060632868,-200.0,0.00011059,2]
[404324094,1770060632877,-200.0,0.00011059,2]
[404324095,1770060632886,-500.0,0.00011059,2]
[404324096,1770060632895,-151.0,0.00011059,2]
[404324097,1770060632904,-151.0,0.00011059,2]
[404324098,1770060632914,-151.0,0.00011059,2]
[404324099,1770060632923,-219.284852,0.00011059,2]
[404324100,1770060632931,-151.0,0.00011062,2]
[404324101,1770060632941,-458.51,0.00011064,2]
[404324102,1770060632950,-500.0,0.00011064,2]
[404324103,1770060632959,-378.89600941,0.00011064,2]
[404324104,1770060632968,-500.0,0.00011064,2]
[404324105,1770060632977,-250.13245519,0.00011064,2]
[404324106,1770060632986,-165.49435866,0.00011064,2]
[404324107,1770060632995,-288.30260625,0.00011064,2]
[404324108,1770060633004,-500.0,0.00011064,2]
[404324109,1770060633013,-196.34070519,0.00011064,2]
[404324110,1770060633023,-500.0,0.00011064,2]
[404324111,1770060633032,-500.0,0.00011064,2]
[404324112,1770060633041,-500.0,0.00011064,2]
[404324113,1770060633050,-500.0,0.00011064,2]
[404324114,1770060633059,-500.0,0.00011064,2]
[404324115,1770060633068,-500.0,0.00011064,2]
[404324116,1770060633077,-500.0,0.00011064,2]
[404324117,1770060633087,-500.0,0.00011064,2]
[404324118,1770060633096,-500.0,0.00011064,2]
[404324119,1770060633105,-500.0,0.00011064,2]
[404324120,1770060633114,-500.0,0.00011064,2]
[404324121,1770060633123,-500.0,0.00011064,2]
[404324122,1770060633132,-500.0,0.00011064,2]
[404324123,1770060633141,-500.0,0.00011064,2]
[404324124,1770060633150,-500.0,0.00011064,2]
[404324125,1770060633159,-500.0,0.00011064,2]
[404324126,1770060633169,-500.0,0.00011064,2]
[404324127,1770060633180,-500.0,0.00011064,2]
[404324128,1770060633194,-500.0,0.00011064,2]
[404324129,1770060633205,-379.87654416,0.00011064,2]
[404324130,1770060633214,-500.0,0.00011064,2]
[404324131,1770060633223,-500.0,0.00011064,2]
[404324132,1770060633233,-500.0,0.00011064,2]
[404324133,1770060633242,-500.0,0.00011064,2]
[404324134,1770060633253,-500.0,0.00011064,2]
[404324135,1770060633263,-500.0,0.00011064,2]
[404324136,1770060633272,-500.0,0.00011064,2]
[404324137,1770060633281,-500.0,0.00011064,2]
[404324138,1770060633291,-500.0,0.00011064,2]
[404324139,1770060633300,-500.0,0.00011064,2]
[404324140,1770060633309,-500.0,0.00011064,2]
[404324141,1770060633318,-219.21305033,0.00011064,2]
[404324142,1770060633328,-500.0,0.00011064,2]
[404324143,1770060633337,-500.0,0.00011064,2]
[404324144,1770060633347,-500.0,0.00011064,2]
[404324145,1770060633356,-500.0,0.00011064,2]
[404324146,1770060633365,-500.0,0.00011064,2]
[404324147,1770060633375,-500.0,0.00011064,2]
[404324148,1770060633384,-277.95786275,0.00011064,2]
[404324149,1770060633393,-500.0,0.00011064,2]
[404324150,1770060633403,-500.0,0.00011064,2]
[404324151,1770060633413,-277.95786275,0.00011064,2]
[404324152,1770060633422,-500.0,0.00011064,2]
[404324153,1770060633431,-217.38914845,0.00011064,2]
[404324154,1770060633443,-282.61085155,0.00011064,2]
[404324155,1770060633452,-277.95786275,0.00011064,2]
[404324156,1770060633462,-500.0,0.00011064,2]
[404324157,1770060633471,-500.0,0.00011064,2]
[404324158,1770060633481,-277.95786275,0.00011064,2]
[404324159,1770060633490,-500.0,0.00011064,2]
[404324160,1770060633499,-500.0,0.00011064,2]
[404324161,1770060633508,-277.95786275,0.00011064,2]
[404324162,1770060633517,-500.0,0.00011064,2]
[404324163,1770060633527,-500.0,0.00011064,2]
[404324164,1770060633535,-277.95786275,0.00011064,2]
[404324165,1770060633545,-500.0,0.00011064,2]
[404324166,1770060633554,-500.0,0.00011064,2]
[404324167,1770060633563,-277.95786275,0.00011064,2]
[404324168,1770060633572,-1153.93461934,0.00011065,2]
[404324169,1770060633581,-3286.1281269,0.00011065,2]
[404324170,1770060633590,-5114.29364386,0.00011065,2]
[404324171,1770060633599,-6003.41751743,0.00011065,2]
[404324172,1770060633610,-698.53479334,0.00011065,2]
[404324173,1770060633621,-815.30584082,0.00011065,2]
[404324174,1770060633631,-374.45875249,0.00011065,2]
[404324182,1770060638254,-498.98998669,0.00011065,2]
[404324184,1770060638266,-337.01413192,0.00011065,2]
[404324185,1770060638309,-503.31697474,0.00011065,2]
[404324186,1770060638320,-675.01067611,0.00011065,2]
[404324187,1770060638332,-516.01776924,0.00011065,2]
[404324188,1770060638344,-1377.07327054,0.00011065,2]
[404324189,1770060638364,-1046.26,0.00011065,2]
[404324190,1770060638376,-10322.00101739,0.00011065,2]
[404324191,1770060638458,-3296408.29177347,0.00011065,2]
[404324192,1770060638468,-500.0,0.00011075,2]
[404324193,1770060638478,-614.7551553,0.00011089,2]
[404324194,1770060638488,-500.0,0.00011093,2]
[404324195,1770060638498,-57709.19420294,0.00011099,2]
[404324196,1770060638508,-29999.99,0.00011099,2]
[404324197,1770060638518,-9999.99,0.00011099,2]
[404324198,1770060638528,-27680.2,0.00011099,2]
[404324199,1770060638538,-9999.99,0.00011099,2]
[404324200,1770060638548,-9999.99,0.00011099,2]
[404324201,1770060638557,-49999.99,0.00011099,2]
[404324202,1770060638567,-299.99,0.00011099,2]
[404324203,1770060638576,-9999.99,0.00011099,2]
[404324204,1770060638586,-150.99,0.00011099,2]
[404324205,1770060638596,-4999.99,0.00011099,2]
[404324206,1770060638605,-999.99,0.00011099,2]
[404324207,1770060638615,-9999.99,0.00011099,2]
[404324208,1770060638624,-499.99,0.00011099,2]
[404324209,1770060638634,-9999.99,0.00011099,2]
[404324210,1770060638644,-62598.8362007,0.00011099,2]
[404324211,1770060638653,-150.99,0.00011137,2]
[404324212,1770060638663,-786.7952414,0.00011138,2]
[404324213,1770060638673,-678.80057644,0.00011138,2]
[404324214,1770060638683,-2368.0474,0.00011138,2]
[404324215,1770060638691,-237.2858,0.00011138,2]